[Event "Titled Tuesday Blitz May 18 2021"]
[White "Deac, Bogdan-Daniel"]
[Black "Abdrlauf, Elham"]
[WhiteFideId "1226380"]
[BlackFideId "1533533"]
[WhiteElo "2605"]
[BlackElo "2326"]
[Result "1-0"]
[Round "10"]
[TimeControl "180+1"]
[Date "2021.05.18"]
[WhiteClock "0:00:03"]
[BlackClock "0:00:05"]

1. e4 {[%clk 0:03:00]}  c6 {[%clk 0:02:58]} 2. d4 {[%clk 0:02:57]}  d5 {[%clk 0:02:59]} 3. f3 {[%clk 0:02:57]}  e6 {[%clk 0:02:57]} 4. Nc3 {[%clk 0:02:57]}  Nf6 {[%clk 0:02:57]} 5. Be3 {[%clk 0:02:40]}  b6 {[%clk 0:02:55]} 6. a3 {[%clk 0:02:27]}  Be7 {[%clk 0:02:52]} 7. Qd2 {[%clk 0:02:13]}  Bb7 {[%clk 0:02:44]} 8. e5 {[%clk 0:02:12]}  Nfd7 {[%clk 0:02:44]} 9. f4 {[%clk 0:02:12]}  c5 {[%clk 0:02:45]} 10. Nf3 {[%clk 0:02:13]}  Nc6 {[%clk 0:02:44]} 11. h4 {[%clk 0:02:12]}  cxd4 {[%clk 0:02:40]} 12. Nxd4 {[%clk 0:02:12]}  Nxd4 {[%clk 0:02:41]} 13. Bxd4 {[%clk 0:02:12]}  Bxh4+ {[%clk 0:02:37]} 14. Bf2 {[%clk 0:02:09]}  Bxf2+ {[%clk 0:02:36]} 15. Qxf2 {[%clk 0:02:10]}  a6 {[%clk 0:02:31]} 16. O-O-O {[%clk 0:01:59]}  Qc7 {[%clk 0:02:30]} 17. Bd3 {[%clk 0:01:40]}  O-O-O {[%clk 0:02:15]} 18. Ne2 {[%clk 0:01:32]}  Nc5 {[%clk 0:02:09]} 19. Nd4 {[%clk 0:01:32]}  Kb8 {[%clk 0:02:09]} 20. Kb1 {[%clk 0:01:30]}  h5 {[%clk 0:02:03]} 21. Rh3 {[%clk 0:01:11]}  g6 {[%clk 0:02:02]} 22. Be2 {[%clk 0:01:11]}  Ne4 {[%clk 0:01:49]} 23. Qe1 {[%clk 0:00:55]}  Rhg8 {[%clk 0:01:30]} 24. Bd3 {[%clk 0:00:23]}  g5 {[%clk 0:01:30]} 25. f5 {[%clk 0:00:13]}  Qxe5 {[%clk 0:01:28]} 26. Bxa6 {[%clk 0:00:12]}  exf5 {[%clk 0:00:57]} 27. Rxh5 {[%clk 0:00:09]}  Qg3 {[%clk 0:00:55]} 28. Bxb7 {[%clk 0:00:08]}  Qxe1 {[%clk 0:00:34]} 29. Rxe1 {[%clk 0:00:08]}  Kxb7 {[%clk 0:00:34]} 30. Nxf5 {[%clk 0:00:08]}  Rd7 {[%clk 0:00:27]} 31. Rh3 {[%clk 0:00:05]}  g4 {[%clk 0:00:24]} 32. Rd3 {[%clk 0:00:05]}  Rg5 {[%clk 0:00:22]} 33. Rxe4 {[%clk 0:00:06]}  Rxf5 {[%clk 0:00:18]} 34. Rxg4 {[%clk 0:00:06]}  Rf1+ {[%clk 0:00:18]} 35. Ka2 {[%clk 0:00:06]}  Rf2 {[%clk 0:00:19]} 36. c3 {[%clk 0:00:06]}  f5 {[%clk 0:00:19]} 37. Rg6 {[%clk 0:00:05]}  Ka6 {[%clk 0:00:13]} 38. Rd4 {[%clk 0:00:05]}  Ka7 {[%clk 0:00:08]} 39. Ra4+ {[%clk 0:00:04]}  Kb7 {[%clk 0:00:07]} 40. Rb4 {[%clk 0:00:05]}  Kc7 {[%clk 0:00:07]} 41. Rbxb6 {[%clk 0:00:05]}  d4 {[%clk 0:00:08]} 42. Rbc6+ {[%clk 0:00:04]}  Kd8 {[%clk 0:00:08]} 43. cxd4 {[%clk 0:00:04]}  Rxd4 {[%clk 0:00:08]} 44. Rg8+ {[%clk 0:00:04]}  Kd7 {[%clk 0:00:08]} 45. Rb6 {[%clk 0:00:05]}  Rdd2 {[%clk 0:00:07]} 46. g3 {[%clk 0:00:05]}  Rg2 {[%clk 0:00:07]} 47. Rg7+ {[%clk 0:00:05]}  Kc8 {[%clk 0:00:07]} 48. Rg5 {[%clk 0:00:05]}  Rdf2 {[%clk 0:00:06]} 49. Rb5 {[%clk 0:00:04]}  Re2 {[%clk 0:00:03]} 50. Rgxf5 {[%clk 0:00:04]}  Rxg3 {[%clk 0:00:03]} 51. Rfc5+ {[%clk 0:00:04]}  Kd7 {[%clk 0:00:03]} 52. Rb3 {[%clk 0:00:04]}  Rgg2 {[%clk 0:00:03]} 53. Rcc3 {[%clk 0:00:05]}  Kd6 {[%clk 0:00:03]} 54. Rb4 {[%clk 0:00:04]}  Kd5 {[%clk 0:00:03]} 55. a4 {[%clk 0:00:05]}  Kd6 {[%clk 0:00:03]} 56. a5 {[%clk 0:00:05]}  Rg8 {[%clk 0:00:03]} 57. a6 {[%clk 0:00:04]}  Ree8 {[%clk 0:00:04]} 58. Rb6+ {[%clk 0:00:04]}  Kd5 {[%clk 0:00:04]} 59. a7 {[%clk 0:00:03]}  Ra8 {[%clk 0:00:04]} 60. Rb7 {[%clk 0:00:03]}  Rg6 {[%clk 0:00:02]} 61. Rcc7 {[%clk 0:00:03]}  Ra6+ {[%clk 0:00:01]} 62. Kb3 {[%clk 0:00:03]}  Kd6 {[%clk 0:00:02]} 63. Kb4 {[%clk 0:00:03]}  Ra1 {[%clk 0:00:02]} 64. b3 {[%clk 0:00:03]}  Rb1 {[%clk 0:00:02]} 65. Ka4 {[%clk 0:00:02]}  Ra1+ {[%clk 0:00:02]} 66. Kb5 {[%clk 0:00:02]}  Rb1 {[%clk 0:00:02]} 67. b4 {[%clk 0:00:03]}  Rb2 {[%clk 0:00:03]} 68. Rh7 {[%clk 0:00:02]}  Rb1 {[%clk 0:00:02]} 69. Rb8 {[%clk 0:00:02]}  Rxa7 {[%clk 0:00:01]} 70. Rxa7 {[%clk 0:00:01]}  Ra1 {[%clk 0:00:02]} 71. Rxa1 {[%clk 0:00:01]}  Kd5 {[%clk 0:00:03]} 72. Ra6 {[%clk 0:00:02]}  Ke5 {[%clk 0:00:04]} 73. Rc6 {[%clk 0:00:03]}  Kd4 {[%clk 0:00:05]} 74. Rd8+ {[%clk 0:00:03]} 1-0


[Site "https://www.chess.com"]

[Event "Titled Tuesday Blitz May 18 2021"]
[White "Erigaisi Arjun"]
[Black "Vysochin, Spartak"]
[WhiteFideId "35009192"]
[BlackFideId "14103516"]
[WhiteElo "2609"]
[BlackElo "2388"]
[Result "1-0"]
[Round "10"]
[TimeControl "180+1"]
[Date "2021.05.18"]
[WhiteClock "0:00:31"]
[BlackClock "0:00:17"]

1. b3 {[%clk 0:03:00]}  d5 {[%clk 0:02:58]} 2. Bb2 {[%clk 0:03:01]}  Bg4 {[%clk 0:02:56]} 3. f3 {[%clk 0:03:00]}  Bh5 {[%clk 0:02:55]} 4. h4 {[%clk 0:03:00]}  f6 {[%clk 0:02:54]} 5. d4 {[%clk 0:02:56]}  e5 {[%clk 0:02:51]} 6. dxe5 {[%clk 0:02:53]}  fxe5 {[%clk 0:02:50]} 7. Bxe5 {[%clk 0:02:54]}  Nc6 {[%clk 0:02:50]} 8. Bb2 {[%clk 0:02:52]}  Nf6 {[%clk 0:02:40]} 9. g4 {[%clk 0:02:48]}  Bf7 {[%clk 0:02:37]} 10. e3 {[%clk 0:02:48]}  Bc5 {[%clk 0:02:37]} 11. Bd4 {[%clk 0:02:46]}  Qe7 {[%clk 0:02:35]} 12. Kf2 {[%clk 0:02:44]}  O-O {[%clk 0:02:32]} 13. c3 {[%clk 0:02:31]}  Rae8 {[%clk 0:02:27]} 14. Bb5 {[%clk 0:02:27]}  Bxd4 {[%clk 0:02:16]} 15. exd4 {[%clk 0:02:26]}  Qe3+ {[%clk 0:02:14]} 16. Kg2 {[%clk 0:02:26]}  Nxg4 {[%clk 0:02:03]} 17. Qd2 {[%clk 0:02:07]}  Bg6 {[%clk 0:02:03]} 18. Qb2 {[%clk 0:01:39]}  Qf4 {[%clk 0:01:25]} 19. Nd2 {[%clk 0:01:14]}  Ne3+ {[%clk 0:01:18]} 20. Kf2 {[%clk 0:01:14]}  Bh5 {[%clk 0:01:12]} 21. Rh3 {[%clk 0:01:03]}  a6 {[%clk 0:01:05]} 22. Bd3 {[%clk 0:00:49]}  Ng4+ {[%clk 0:01:03]} 23. Kg2 {[%clk 0:00:47]}  Re3 {[%clk 0:01:00]} 24. Qc2 {[%clk 0:00:40]}  Ne7 {[%clk 0:00:47]} 25. Nf1 {[%clk 0:00:34]}  Nf5 {[%clk 0:00:35]} 26. Bxf5 {[%clk 0:00:30]}  Rxf5 {[%clk 0:00:35]} 27. fxg4 {[%clk 0:00:29]}  Qxg4+ {[%clk 0:00:35]} 28. Rg3 {[%clk 0:00:30]}  Rxg3+ {[%clk 0:00:32]} 29. Nxg3 {[%clk 0:00:30]}  Rf3 {[%clk 0:00:30]} 30. Nxf3 {[%clk 0:00:30]}  Qxf3+ {[%clk 0:00:30]} 31. Kh2 {[%clk 0:00:30]}  Bg4 {[%clk 0:00:30]} 32. Rf1 {[%clk 0:00:30]}  Qe3 {[%clk 0:00:31]} 33. Qf2 {[%clk 0:00:30]}  Qe7 {[%clk 0:00:30]} 34. Nf5 {[%clk 0:00:30]}  Qd8 {[%clk 0:00:21]} 35. Qf4 {[%clk 0:00:30]}  h5 {[%clk 0:00:20]} 36. Qe5 {[%clk 0:00:30]}  Qd7 {[%clk 0:00:18]} 37. Ne7+ {[%clk 0:00:30]}  Kh7 {[%clk 0:00:17]} 38. Rf7 {[%clk 0:00:31]} 1-0


[Site "https://www.chess.com"]

[Event "Titled Tuesday Blitz May 18 2021"]
[White "Goltsev, Dmitry"]
[Black "Alavi, Sayed Javad"]
[WhiteFideId "24176710"]
[BlackFideId "12500607"]
[WhiteElo "2366"]
[BlackElo "2495"]
[Result "1-0"]
[Round "10"]
[TimeControl "180+1"]
[Date "2021.05.18"]
[WhiteClock "0:01:52"]
[BlackClock "0:00:35"]

1. e4 {[%clk 0:03:00]}  c6 {[%clk 0:02:55]} 2. Nf3 {[%clk 0:02:59]}  d5 {[%clk 0:02:55]} 3. Nc3 {[%clk 0:03:00]}  dxe4 {[%clk 0:02:55]} 4. Nxe4 {[%clk 0:03:01]}  Nf6 {[%clk 0:02:56]} 5. Nxf6+ {[%clk 0:03:01]}  exf6 {[%clk 0:02:57]} 6. Bc4 {[%clk 0:03:02]}  Bd6 {[%clk 0:02:50]} 7. Qe2+ {[%clk 0:03:02]}  Qe7 {[%clk 0:02:50]} 8. Qxe7+ {[%clk 0:02:58]}  Kxe7 {[%clk 0:02:50]} 9. d4 {[%clk 0:02:57]}  Re8 {[%clk 0:02:49]} 10. Be3 {[%clk 0:02:49]}  Kf8 {[%clk 0:02:38]} 11. h3 {[%clk 0:02:48]}  Bf5 {[%clk 0:02:27]} 12. Kd2 {[%clk 0:02:47]}  Be4 {[%clk 0:02:24]} 13. Ne1 {[%clk 0:02:45]}  Nd7 {[%clk 0:02:21]} 14. f3 {[%clk 0:02:38]}  Nb6 {[%clk 0:02:20]} 15. Bb3 {[%clk 0:02:37]}  Bd5 {[%clk 0:02:19]} 16. Nd3 {[%clk 0:02:35]}  Nc4+ {[%clk 0:02:15]} 17. Bxc4 {[%clk 0:02:33]}  Bxc4 {[%clk 0:02:16]} 18. Bf4 {[%clk 0:02:31]}  Bxf4+ {[%clk 0:02:13]} 19. Nxf4 {[%clk 0:02:32]}  Rad8 {[%clk 0:02:09]} 20. c3 {[%clk 0:02:27]}  c5 {[%clk 0:01:59]} 21. b3 {[%clk 0:02:26]}  Ba6 {[%clk 0:01:58]} 22. Rhe1 {[%clk 0:02:09]}  cxd4 {[%clk 0:01:54]} 23. Rxe8+ {[%clk 0:02:09]}  Kxe8 {[%clk 0:01:54]} 24. Re1+ {[%clk 0:02:09]}  Kf8 {[%clk 0:01:54]} 25. c4 {[%clk 0:02:09]}  b6 {[%clk 0:01:26]} 26. Nd5 {[%clk 0:02:05]}  Bb7 {[%clk 0:01:21]} 27. Nb4 {[%clk 0:02:03]}  a5 {[%clk 0:01:11]} 28. Nc2 {[%clk 0:02:02]}  d3 {[%clk 0:00:56]} 29. Na3 {[%clk 0:01:59]}  Bc8 {[%clk 0:00:50]} 30. Re3 {[%clk 0:01:53]}  Bf5 {[%clk 0:00:49]} 31. g4 {[%clk 0:01:53]}  Bg6 {[%clk 0:00:49]} 32. f4 {[%clk 0:01:53]}  f5 {[%clk 0:00:41]} 33. g5 {[%clk 0:01:52]}  Rd4 {[%clk 0:00:41]} 34. Rf3 {[%clk 0:01:52]}  Bh5 {[%clk 0:00:39]} 35. Rf2 {[%clk 0:01:52]}  Be2 {[%clk 0:00:36]} 36. Nb5 {[%clk 0:01:53]}  Rd6 {[%clk 0:00:35]} 37. Nxd6 {[%clk 0:01:52]} 1-0


[Site "https://www.chess.com"]

[Event "Titled Tuesday Blitz May 18 2021"]
[White "Khanin, Semen"]
[Black "Martirosyan, Haik M."]
[WhiteFideId "4111990"]
[BlackFideId "13306553"]
[WhiteElo "2521"]
[BlackElo "2656"]
[Result "0-1"]
[Round "10"]
[TimeControl "180+1"]
[Date "2021.05.18"]
[WhiteClock "0:00:03"]
[BlackClock "0:01:14"]

1. c4 {[%clk 0:03:00]}  c5 {[%clk 0:02:59]} 2. Nc3 {[%clk 0:03:01]}  Nc6 {[%clk 0:03:00]} 3. Nf3 {[%clk 0:03:00]}  d6 {[%clk 0:02:59]} 4. d4 {[%clk 0:02:59]}  cxd4 {[%clk 0:03:00]} 5. Nxd4 {[%clk 0:02:59]}  g6 {[%clk 0:03:01]} 6. g3 {[%clk 0:02:54]}  Bg7 {[%clk 0:03:01]} 7. Be3 {[%clk 0:02:47]}  Nf6 {[%clk 0:03:00]} 8. Bg2 {[%clk 0:02:46]}  Bd7 {[%clk 0:03:01]} 9. O-O {[%clk 0:02:46]}  h5 {[%clk 0:03:01]} 10. h3 {[%clk 0:02:39]}  Qc8 {[%clk 0:02:58]} 11. Nd5 {[%clk 0:02:31]}  Bxh3 {[%clk 0:02:47]} 12. Nc7+ {[%clk 0:02:01]}  Qxc7 {[%clk 0:02:38]} 13. Bxh3 {[%clk 0:02:01]}  h4 {[%clk 0:02:38]} 14. Nb5 {[%clk 0:01:54]}  Qd8 {[%clk 0:02:37]} 15. Bg2 {[%clk 0:01:47]}  a6 {[%clk 0:02:29]} 16. Nd4 {[%clk 0:01:44]}  Ne5 {[%clk 0:02:29]} 17. Qa4+ {[%clk 0:01:42]}  Kf8 {[%clk 0:02:29]} 18. Bxb7 {[%clk 0:01:39]}  Nfg4 {[%clk 0:02:25]} 19. Bf4 {[%clk 0:01:24]}  Rb8 {[%clk 0:02:25]} 20. Qxa6 {[%clk 0:01:23]}  Qc7 {[%clk 0:02:18]} 21. Bd5 {[%clk 0:01:18]}  Kg8 {[%clk 0:02:14]} 22. Nb5 {[%clk 0:01:15]}  Qd7 {[%clk 0:02:13]} 23. Qa7 {[%clk 0:01:11]}  Qd8 {[%clk 0:02:10]} 24. gxh4 {[%clk 0:01:06]}  e6 {[%clk 0:02:09]} 25. Bg5 {[%clk 0:01:04]}  Bf6 {[%clk 0:02:09]} 26. Bxf6 {[%clk 0:00:56]}  Nxf6 {[%clk 0:02:10]} 27. Bg2 {[%clk 0:00:45]}  Nfg4 {[%clk 0:02:08]} 28. f3 {[%clk 0:00:24]}  Nh6 {[%clk 0:01:50]} 29. Rfd1 {[%clk 0:00:20]}  Nxc4 {[%clk 0:01:47]} 30. b3 {[%clk 0:00:14]}  Rxb5 {[%clk 0:01:37]} 31. bxc4 {[%clk 0:00:14]}  Rh5 {[%clk 0:01:38]} 32. Qd4 {[%clk 0:00:12]}  e5 {[%clk 0:01:37]} 33. Qxd6 {[%clk 0:00:11]}  Qxh4 {[%clk 0:01:32]} 34. Qd8+ {[%clk 0:00:11]}  Kg7 {[%clk 0:01:33]} 35. Qxh4 {[%clk 0:00:11]}  Rxh4 {[%clk 0:01:34]} 36. Rac1 {[%clk 0:00:10]}  Nf5 {[%clk 0:01:34]} 37. Kf2 {[%clk 0:00:10]}  Rc8 {[%clk 0:01:30]} 38. c5 {[%clk 0:00:10]}  Ra4 {[%clk 0:01:31]} 39. Rc2 {[%clk 0:00:10]}  Nd4 {[%clk 0:01:31]} 40. Rc3 {[%clk 0:00:07]}  Rxa2 {[%clk 0:01:30]} 41. Bf1 {[%clk 0:00:07]}  Ra5 {[%clk 0:01:26]} 42. Rdc1 {[%clk 0:00:06]}  Rc6 {[%clk 0:01:25]} 43. Rc4 {[%clk 0:00:06]}  Ne6 {[%clk 0:01:25]} 44. Re4 {[%clk 0:00:04]}  Rcxc5 {[%clk 0:01:26]} 45. Rxc5 {[%clk 0:00:04]}  Nxc5 {[%clk 0:01:26]} 46. Rc4 {[%clk 0:00:03]}  Ne6 {[%clk 0:01:27]} 47. e3 {[%clk 0:00:03]}  Ra2+ {[%clk 0:01:26]} 48. Kg3 {[%clk 0:00:03]}  Ra3 {[%clk 0:01:26]} 49. Kf2 {[%clk 0:00:03]}  Kf6 {[%clk 0:01:22]} 50. Be2 {[%clk 0:00:03]}  Ng7 {[%clk 0:01:22]} 51. Rc6+ {[%clk 0:00:02]}  Ne6 {[%clk 0:01:22]} 52. Rc4 {[%clk 0:00:02]}  Ke7 {[%clk 0:01:21]} 53. Rc6 {[%clk 0:00:01]}  Kd7 {[%clk 0:01:18]} 54. Rb6 {[%clk 0:00:02]}  Kc7 {[%clk 0:01:16]} 55. Rb4 {[%clk 0:00:02]}  Ng7 {[%clk 0:01:16]} 56. Rb5 {[%clk 0:00:02]}  f6 {[%clk 0:01:14]} 57. Rb4 {[%clk 0:00:02]}  Nf5 {[%clk 0:01:13]} 58. Rc4+ {[%clk 0:00:02]}  Kd6 {[%clk 0:01:14]} 59. e4 {[%clk 0:00:02]}  Nd4 {[%clk 0:01:14]} 60. Rb4 {[%clk 0:00:02]}  Ra2 {[%clk 0:01:14]} 61. Rb6+ {[%clk 0:00:02]}  Ke7 {[%clk 0:01:13]} 62. Rb7+ {[%clk 0:00:03]}  Kf8 {[%clk 0:01:14]} 63. Rb8+ {[%clk 0:00:03]}  Kg7 {[%clk 0:01:14]} 64. Rb7+ {[%clk 0:00:04]}  Kh6 {[%clk 0:01:15]} 65. f4 {[%clk 0:00:02]}  Rxe2+ {[%clk 0:01:15]} 66. Kg3 {[%clk 0:00:03]}  Rxe4 {[%clk 0:01:14]} 0-1


[Site "https://www.chess.com"]

[Event "Titled Tuesday Blitz May 18 2021"]
[White "Kosteniuk, Alexandra"]
[Black "Timofeev, Artyom"]
[WhiteFideId "4128125"]
[BlackFideId "4140419"]
[WhiteElo "2521"]
[BlackElo "2582"]
[Result "0-1"]
[Round "10"]
[TimeControl "180+1"]
[Date "2021.05.18"]
[WhiteClock "0:00:04"]
[BlackClock "0:00:23"]

1. e4 {[%clk 0:03:00]}  d5 {[%clk 0:03:00]} 2. exd5 {[%clk 0:03:00]}  Nf6 {[%clk 0:02:59]} 3. Nf3 {[%clk 0:02:57]}  Nxd5 {[%clk 0:03:00]} 4. d4 {[%clk 0:02:57]}  g6 {[%clk 0:03:00]} 5. c4 {[%clk 0:02:53]}  Nf6 {[%clk 0:03:00]} 6. Nc3 {[%clk 0:02:52]}  Bg7 {[%clk 0:03:00]} 7. h3 {[%clk 0:02:52]}  O-O {[%clk 0:03:00]} 8. Be3 {[%clk 0:02:52]}  b6 {[%clk 0:03:00]} 9. Be2 {[%clk 0:02:51]}  Bb7 {[%clk 0:03:01]} 10. O-O {[%clk 0:02:51]}  Nbd7 {[%clk 0:03:01]} 11. Qc1 {[%clk 0:02:48]}  e6 {[%clk 0:02:59]} 12. Re1 {[%clk 0:02:41]}  c5 {[%clk 0:02:59]} 13. Nb5 {[%clk 0:02:23]}  a6 {[%clk 0:02:52]} 14. Nd6 {[%clk 0:02:02]}  Bc6 {[%clk 0:02:52]} 15. Rd1 {[%clk 0:01:58]}  Qc7 {[%clk 0:02:50]} 16. dxc5 {[%clk 0:01:54]}  bxc5 {[%clk 0:02:46]} 17. Rb1 {[%clk 0:01:40]}  Ne4 {[%clk 0:02:39]} 18. Nxe4 {[%clk 0:01:08]}  Bxe4 {[%clk 0:02:39]} 19. Ra1 {[%clk 0:01:09]}  Rab8 {[%clk 0:02:38]} 20. Rd2 {[%clk 0:01:09]}  Qb7 {[%clk 0:02:35]} 21. Qd1 {[%clk 0:00:41]}  Bc6 {[%clk 0:02:27]} 22. Bf4 {[%clk 0:00:38]}  e5 {[%clk 0:02:23]} 23. Bg3 {[%clk 0:00:34]}  Rbe8 {[%clk 0:02:22]} 24. Rb1 {[%clk 0:00:32]}  e4 {[%clk 0:02:22]} 25. Ne1 {[%clk 0:00:32]}  e3 {[%clk 0:02:19]} 26. fxe3 {[%clk 0:00:31]}  Rxe3 {[%clk 0:02:19]} 27. Bf2 {[%clk 0:00:30]}  Re7 {[%clk 0:02:14]} 28. Bf3 {[%clk 0:00:30]}  Ne5 {[%clk 0:02:11]} 29. Bxc6 {[%clk 0:00:30]}  Qxc6 {[%clk 0:02:11]} 30. Rd5 {[%clk 0:00:29]}  Nxc4 {[%clk 0:02:04]} 31. Rxc5 {[%clk 0:00:30]}  Qe6 {[%clk 0:02:04]} 32. Nf3 {[%clk 0:00:27]}  Nxb2 {[%clk 0:01:57]} 33. Qc2 {[%clk 0:00:27]}  Qxa2 {[%clk 0:01:41]} 34. Nd4 {[%clk 0:00:24]}  Rb7 {[%clk 0:01:35]} 35. Nc6 {[%clk 0:00:12]}  Qb3 {[%clk 0:01:18]} 36. Qxb3 {[%clk 0:00:12]}  Rxb3 {[%clk 0:01:18]} 37. Ne7+ {[%clk 0:00:11]}  Kh8 {[%clk 0:01:18]} 38. Ra5 {[%clk 0:00:09]}  Ra8 {[%clk 0:01:05]} 39. Nc6 {[%clk 0:00:09]}  Rd3 {[%clk 0:00:53]} 40. Nb4 {[%clk 0:00:09]}  Rd6 {[%clk 0:00:48]} 41. Bc5 {[%clk 0:00:09]}  Re6 {[%clk 0:00:48]} 42. Ra2 {[%clk 0:00:06]}  Nc4 {[%clk 0:00:47]} 43. Nd5 {[%clk 0:00:07]}  Rc6 {[%clk 0:00:45]} 44. Bf2 {[%clk 0:00:03]}  h5 {[%clk 0:00:42]} 45. Nb4 {[%clk 0:00:04]}  Rd6 {[%clk 0:00:41]} 46. Rc1 {[%clk 0:00:04]}  Ne5 {[%clk 0:00:37]} 47. Rc7 {[%clk 0:00:04]}  a5 {[%clk 0:00:34]} 48. Nc2 {[%clk 0:00:03]}  Rd2 {[%clk 0:00:31]} 49. Nb4 {[%clk 0:00:02]}  Rxa2 {[%clk 0:00:30]} 50. Nxa2 {[%clk 0:00:03]}  a4 {[%clk 0:00:30]} 51. Bd4 {[%clk 0:00:04]}  Kg8 {[%clk 0:00:30]} 52. Kf2 {[%clk 0:00:04]}  Nd3+ {[%clk 0:00:22]} 53. Ke3 {[%clk 0:00:04]}  Bxd4+ {[%clk 0:00:23]} 54. Kxd4 {[%clk 0:00:05]}  Nf4 {[%clk 0:00:23]} 55. g3 {[%clk 0:00:04]}  Nxh3 {[%clk 0:00:23]} 56. Ke5 {[%clk 0:00:04]}  Ng5 {[%clk 0:00:23]} 57. Kf4 {[%clk 0:00:04]}  Ne6+ {[%clk 0:00:23]} 0-1


[Site "https://www.chess.com"]

[Event "Titled Tuesday Blitz May 18 2021"]
[White "Le, Tuan Minh"]
[Black "Dubov, Daniil"]
[WhiteFideId "12401153"]
[BlackFideId "24126055"]
[WhiteElo "2450"]
[BlackElo "2722"]
[Result "1-0"]
[Round "10"]
[TimeControl "180+1"]
[Date "2021.05.18"]
[WhiteClock "0:00:14"]
[BlackClock "0:00:03"]

1. d4 {[%clk 0:03:00]}  Nf6 {[%clk 0:02:59]} 2. Nf3 {[%clk 0:03:01]}  c5 {[%clk 0:02:59]} 3. c3 {[%clk 0:03:01]}  d5 {[%clk 0:02:58]} 4. Bf4 {[%clk 0:03:01]}  cxd4 {[%clk 0:02:58]} 5. cxd4 {[%clk 0:03:01]}  Qb6 {[%clk 0:02:58]} 6. Qb3 {[%clk 0:02:35]}  Qxb3 {[%clk 0:02:50]} 7. axb3 {[%clk 0:02:35]}  Nc6 {[%clk 0:02:49]} 8. Nc3 {[%clk 0:02:28]}  e6 {[%clk 0:02:49]} 9. e3 {[%clk 0:02:28]}  Bd7 {[%clk 0:02:47]} 10. Bd3 {[%clk 0:02:24]}  Bb4 {[%clk 0:02:43]} 11. Ke2 {[%clk 0:02:21]}  O-O {[%clk 0:02:43]} 12. Rhc1 {[%clk 0:02:21]}  Rfc8 {[%clk 0:02:41]} 13. Nb5 {[%clk 0:02:15]}  Ne8 {[%clk 0:02:38]} 14. Ne5 {[%clk 0:01:57]}  Nxe5 {[%clk 0:02:33]} 15. Bxe5 {[%clk 0:01:54]}  a6 {[%clk 0:02:29]} 16. Nc3 {[%clk 0:01:50]}  f6 {[%clk 0:02:03]} 17. Bg3 {[%clk 0:01:48]}  Bd6 {[%clk 0:02:03]} 18. e4 {[%clk 0:01:39]}  Bxg3 {[%clk 0:01:56]} 19. hxg3 {[%clk 0:01:40]}  dxe4 {[%clk 0:01:56]} 20. Nxe4 {[%clk 0:01:38]}  Bc6 {[%clk 0:01:53]} 21. Nc5 {[%clk 0:01:37]}  Nd6 {[%clk 0:01:49]} 22. Bc4 {[%clk 0:01:30]}  Nxc4 {[%clk 0:01:39]} 23. bxc4 {[%clk 0:01:31]}  Bxg2 {[%clk 0:01:26]} 24. f3 {[%clk 0:01:18]}  Bh3 {[%clk 0:01:16]} 25. b3 {[%clk 0:00:58]}  e5 {[%clk 0:00:50]} 26. Nxb7 {[%clk 0:00:58]}  exd4 {[%clk 0:00:44]} 27. Rd1 {[%clk 0:00:56]}  Rc7 {[%clk 0:00:22]} 28. Nd6 {[%clk 0:00:42]}  h5 {[%clk 0:00:10]} 29. Rxd4 {[%clk 0:00:41]}  Rb8 {[%clk 0:00:10]} 30. Ra3 {[%clk 0:00:27]}  Rc6 {[%clk 0:00:10]} 31. Ne4 {[%clk 0:00:17]}  Rcb6 {[%clk 0:00:08]} 32. Nd2 {[%clk 0:00:13]}  Bf5 {[%clk 0:00:07]} 33. Kf2 {[%clk 0:00:12]}  Kh7 {[%clk 0:00:05]} 34. Ra5 {[%clk 0:00:12]}  Bg6 {[%clk 0:00:05]} 35. Rc5 {[%clk 0:00:09]}  Re6 {[%clk 0:00:05]} 36. g4 {[%clk 0:00:04]}  hxg4 {[%clk 0:00:03]} 37. Rxg4 {[%clk 0:00:05]}  Rbe8 {[%clk 0:00:03]} 38. Rh4+ {[%clk 0:00:05]}  Kg8 {[%clk 0:00:03]} 39. Kg3 {[%clk 0:00:06]}  Re2 {[%clk 0:00:03]} 40. Rd4 {[%clk 0:00:06]}  R8e7 {[%clk 0:00:03]} 41. Rc8+ {[%clk 0:00:05]}  Kf7 {[%clk 0:00:03]} 42. Rc6 {[%clk 0:00:05]}  Rb7 {[%clk 0:00:03]} 43. c5 {[%clk 0:00:05]}  Bc2 {[%clk 0:00:03]} 44. Nc4 {[%clk 0:00:05]}  Kg6 {[%clk 0:00:02]} 45. Rg4+ {[%clk 0:00:05]}  Kh6 {[%clk 0:00:02]} 46. Rh4+ {[%clk 0:00:05]}  Kg6 {[%clk 0:00:01]} 47. Rb6 {[%clk 0:00:05]}  Rc7 {[%clk 0:00:01]} 48. Rg4+ {[%clk 0:00:05]}  Kh6 {[%clk 0:00:02]} 49. b4 {[%clk 0:00:06]}  Bf5 {[%clk 0:00:01]} 50. Rh4+ {[%clk 0:00:07]}  Kg6 {[%clk 0:00:02]} 51. Nd6 {[%clk 0:00:07]}  Be6 {[%clk 0:00:01]} 52. Rxa6 {[%clk 0:00:07]}  Rb2 {[%clk 0:00:02]} 53. Re4 {[%clk 0:00:07]}  Bd5 {[%clk 0:00:01]} 54. Rd4 {[%clk 0:00:08]}  Be6 {[%clk 0:00:01]} 55. Nb5 {[%clk 0:00:08]}  Re7 {[%clk 0:00:02]} 56. Re4 {[%clk 0:00:08]}  Kf7 {[%clk 0:00:01]} 57. Nd6+ {[%clk 0:00:08]}  Kg6 {[%clk 0:00:01]} 58. Nb5 {[%clk 0:00:08]}  Kf7 {[%clk 0:00:01]} 59. Nd4 {[%clk 0:00:08]}  Bc4 {[%clk 0:00:01]} 60. Rxe7+ {[%clk 0:00:09]}  Kxe7 {[%clk 0:00:02]} 61. Ra7+ {[%clk 0:00:10]}  Kf8 {[%clk 0:00:02]} 62. b5 {[%clk 0:00:10]}  Bxb5 {[%clk 0:00:01]} 63. Rb7 {[%clk 0:00:10]}  Rb4 {[%clk 0:00:02]} 64. Nxb5 {[%clk 0:00:10]}  Rc4 {[%clk 0:00:03]} 65. Rc7 {[%clk 0:00:10]}  Kg8 {[%clk 0:00:02]} 66. Nd6 {[%clk 0:00:11]}  Rc3 {[%clk 0:00:02]} 67. c6 {[%clk 0:00:11]}  Kh7 {[%clk 0:00:03]} 68. Nf5 {[%clk 0:00:11]}  Kg6 {[%clk 0:00:03]} 69. Nxg7 {[%clk 0:00:12]}  f5 {[%clk 0:00:03]} 70. Ne6 {[%clk 0:00:12]}  Kh5 {[%clk 0:00:03]} 71. Nf4+ {[%clk 0:00:12]}  Kg5 {[%clk 0:00:03]} 72. Rg7+ {[%clk 0:00:12]}  Kf6 {[%clk 0:00:03]} 73. Nd5+ {[%clk 0:00:13]}  Kxg7 {[%clk 0:00:03]} 74. Nxc3 {[%clk 0:00:14]} 1-0


[Site "https://www.chess.com"]